[Event "Titled Tuesday Blitz March 07 Late 2023"]
[White "Meunier-Pion, Jean"]
[Black "Janaszak, Dawid"]
[WhiteFideId "20685327"]
[BlackFideId "1119206"]
[WhiteElo "2124"]
[BlackElo "2220"]
[Result "1-0"]
[Round "10"]
[TimeControl "180+2"]
[Date "2023.03.07"]
[WhiteClock "0:00:13"]
[BlackClock "0:00:24"]

1. e4 {[%clk 0:03:00]}  e5 {[%clk 0:02:57]} 2. Nf3 {[%clk 0:03:01]}  Nc6 {[%clk 0:02:52]} 3. Bb5 {[%clk 0:03:01]}  d6 {[%clk 0:02:43]} 4. d4 {[%clk 0:02:57]}  exd4 {[%clk 0:02:43]} 5. Nxd4 {[%clk 0:02:52]}  Bd7 {[%clk 0:02:43]} 6. Bxc6 {[%clk 0:02:52]}  bxc6 {[%clk 0:02:44]} 7. O-O {[%clk 0:02:46]}  Nf6 {[%clk 0:02:44]} 8. Nc3 {[%clk 0:02:45]}  Be7 {[%clk 0:02:44]} 9. f4 {[%clk 0:02:45]}  O-O {[%clk 0:02:43]} 10. e5 {[%clk 0:02:28]}  Nd5 {[%clk 0:02:40]} 11. Bd2 {[%clk 0:02:16]}  dxe5 {[%clk 0:02:31]} 12. fxe5 {[%clk 0:02:15]}  Bc5 {[%clk 0:02:30]} 13. Ne2 {[%clk 0:01:47]}  Rb8 {[%clk 0:02:17]} 14. Kh1 {[%clk 0:01:46]}  Rxb2 {[%clk 0:02:13]} 15. Nb3 {[%clk 0:01:45]}  Bg4 {[%clk 0:02:02]} 16. Nxc5 {[%clk 0:01:25]}  Bxe2 {[%clk 0:01:40]} 17. Qxe2 {[%clk 0:01:24]}  Rxc2 {[%clk 0:01:41]} 18. Ne4 {[%clk 0:01:18]}  Qe7 {[%clk 0:01:28]} 19. Qd3 {[%clk 0:01:18]}  Rb2 {[%clk 0:01:24]} 20. Rae1 {[%clk 0:00:54]}  Qh4 {[%clk 0:01:00]} 21. e6 {[%clk 0:00:28]}  f6 {[%clk 0:00:55]} 22. e7 {[%clk 0:00:20]}  Nxe7 {[%clk 0:00:47]} 23. Qa3 {[%clk 0:00:20]}  Rc2 {[%clk 0:00:34]} 24. Qxe7 {[%clk 0:00:20]}  Rxa2 {[%clk 0:00:33]} 25. Qe6+ {[%clk 0:00:19]}  Kh8 {[%clk 0:00:33]} 26. Qxa2 {[%clk 0:00:19]}  h6 {[%clk 0:00:32]} 27. Qe6 {[%clk 0:00:16]}  Qh5 {[%clk 0:00:30]} 28. Ng3 {[%clk 0:00:16]}  Qb5 {[%clk 0:00:28]} 29. Qe7 {[%clk 0:00:16]}  Rb8 {[%clk 0:00:26]} 30. Nf5 {[%clk 0:00:14]}  Rg8 {[%clk 0:00:25]} 31. Bxh6 {[%clk 0:00:13]}  gxh6 {[%clk 0:00:24]} 32. Qxf6+ {[%clk 0:00:13]}  Kh7 {[%clk 0:00:24]} 33. Re7+ {[%clk 0:00:13]} 1-0


[Site "https://www.chess.com"]

[Event "Titled Tuesday Blitz March 07 Late 2023"]
[White "Reprintsev, Alexander"]
[Black "Gerbelli Neto, Eduardo"]
[WhiteFideId "14100541"]
[BlackFideId "2103281"]
[WhiteElo "2229"]
[BlackElo "2178"]
[Result "1-0"]
[Round "10"]
[TimeControl "180+2"]
[Date "2023.03.07"]
[WhiteClock "0:00:52"]
[BlackClock "0:00:40"]

1. e4 {[%clk 0:02:52]}  e5 {[%clk 0:02:59]} 2. Nf3 {[%clk 0:02:51]}  Nc6 {[%clk 0:02:59]} 3. Bc4 {[%clk 0:02:51]}  Nf6 {[%clk 0:02:59]} 4. Ng5 {[%clk 0:02:52]}  d5 {[%clk 0:02:58]} 5. exd5 {[%clk 0:02:52]}  Nd4 {[%clk 0:02:59]} 6. c3 {[%clk 0:02:51]}  b5 {[%clk 0:02:59]} 7. Bf1 {[%clk 0:02:43]}  Nxd5 {[%clk 0:02:59]} 8. Ne4 {[%clk 0:02:38]}  Ne6 {[%clk 0:02:57]} 9. Bxb5+ {[%clk 0:02:36]}  Bd7 {[%clk 0:02:57]} 10. Qa4 {[%clk 0:02:26]}  f5 {[%clk 0:02:32]} 11. Bxd7+ {[%clk 0:02:26]}  Qxd7 {[%clk 0:02:32]} 12. Qxd7+ {[%clk 0:02:25]}  Kxd7 {[%clk 0:02:33]} 13. Ng3 {[%clk 0:02:25]}  g6 {[%clk 0:02:32]} 14. d3 {[%clk 0:02:14]}  Nc5 {[%clk 0:02:17]} 15. Ke2 {[%clk 0:02:07]}  Nf4+ {[%clk 0:02:15]} 16. Bxf4 {[%clk 0:02:07]}  exf4 {[%clk 0:02:16]} 17. Nf1 {[%clk 0:02:06]}  Re8+ {[%clk 0:02:13]} 18. Kd2 {[%clk 0:02:05]}  Bh6 {[%clk 0:02:05]} 19. f3 {[%clk 0:01:59]}  Re6 {[%clk 0:01:56]} 20. Kc2 {[%clk 0:01:57]}  Re2+ {[%clk 0:01:54]} 21. Nbd2 {[%clk 0:01:55]}  Rxg2 {[%clk 0:01:54]} 22. Re1 {[%clk 0:01:55]}  Re8 {[%clk 0:01:52]} 23. Rxe8 {[%clk 0:01:54]}  Kxe8 {[%clk 0:01:53]} 24. d4 {[%clk 0:01:51]}  Nd7 {[%clk 0:01:45]} 25. Kd3 {[%clk 0:01:50]}  Nf6 {[%clk 0:01:41]} 26. c4 {[%clk 0:01:48]}  Kd7 {[%clk 0:01:40]} 27. h4 {[%clk 0:01:41]}  Nh5 {[%clk 0:01:40]} 28. Rh2 {[%clk 0:01:41]}  Rg1 {[%clk 0:01:38]} 29. b4 {[%clk 0:01:34]}  Ng3 {[%clk 0:01:38]} 30. Rf2 {[%clk 0:01:30]}  Rh1 {[%clk 0:01:33]} 31. a4 {[%clk 0:01:27]}  Rxh4 {[%clk 0:01:30]} 32. b5 {[%clk 0:01:27]}  g5 {[%clk 0:01:14]} 33. c5 {[%clk 0:01:26]}  g4 {[%clk 0:01:13]} 34. c6+ {[%clk 0:01:23]}  Kc8 {[%clk 0:01:10]} 35. a5 {[%clk 0:01:22]}  Rh3 {[%clk 0:01:09]} 36. Kc4 {[%clk 0:01:21]}  Nxf1 {[%clk 0:01:07]} 37. Rxf1 {[%clk 0:01:20]}  g3 {[%clk 0:01:06]} 38. Kd5 {[%clk 0:01:12]}  Rh2 {[%clk 0:01:02]} 39. Nc4 {[%clk 0:01:12]}  Bg7 {[%clk 0:00:57]} 40. Ne5 {[%clk 0:01:11]}  Rf2 {[%clk 0:00:54]} 41. Rg1 {[%clk 0:01:07]}  g2 {[%clk 0:00:53]} 42. Nc4 {[%clk 0:00:57]}  h5 {[%clk 0:00:52]} 43. b6 {[%clk 0:00:57]}  cxb6 {[%clk 0:00:52]} 44. axb6 {[%clk 0:00:58]}  axb6 {[%clk 0:00:51]} 45. Kd6 {[%clk 0:00:55]}  Bf8+ {[%clk 0:00:51]} 46. Ke6 {[%clk 0:00:55]}  Kc7 {[%clk 0:00:49]} 47. d5 {[%clk 0:00:54]}  h4 {[%clk 0:00:49]} 48. Ra1 {[%clk 0:00:54]}  Rf1 {[%clk 0:00:43]} 49. Ra7+ {[%clk 0:00:53]}  Kb8 {[%clk 0:00:43]} 50. Rb7+ {[%clk 0:00:53]}  Kc8 {[%clk 0:00:40]} 51. Nxb6+ {[%clk 0:00:53]}  Kd8 {[%clk 0:00:40]} 52. c7+ {[%clk 0:00:52]} 1-0


[Site "https://www.chess.com"]

[Event "Titled Tuesday Blitz March 07 Late 2023"]
[White "Bach, Matthias"]
[Black "Kokoszczynski, Jan"]
[WhiteFideId "4603168"]
[BlackFideId "1174460"]
[WhiteElo "2165"]
[BlackElo "2139"]
[Result "0-1"]
[Round "10"]
[TimeControl "180+2"]
[Date "2023.03.07"]
[WhiteClock "0:00:07"]
[BlackClock "0:00:11"]

1. d4 {[%clk 0:02:52]}  d5 {[%clk 0:02:57]} 2. c4 {[%clk 0:02:52]}  e6 {[%clk 0:02:57]} 3. Nf3 {[%clk 0:02:52]}  a6 {[%clk 0:02:57]} 4. g3 {[%clk 0:02:52]}  dxc4 {[%clk 0:02:56]} 5. Bg2 {[%clk 0:02:52]}  b5 {[%clk 0:02:57]} 6. Ne5 {[%clk 0:02:52]}  c6 {[%clk 0:02:47]} 7. O-O {[%clk 0:02:50]}  Bb7 {[%clk 0:02:45]} 8. b3 {[%clk 0:02:50]}  cxb3 {[%clk 0:02:44]} 9. axb3 {[%clk 0:02:49]}  Nf6 {[%clk 0:02:40]} 10. Bd2 {[%clk 0:02:47]}  Qxd4 {[%clk 0:02:31]} 11. Bc3 {[%clk 0:02:46]}  Qxd1 {[%clk 0:02:31]} 12. Rxd1 {[%clk 0:02:47]}  Nd5 {[%clk 0:02:16]} 13. Ba5 {[%clk 0:02:42]}  Be7 {[%clk 0:02:07]} 14. e4 {[%clk 0:02:38]}  Nf6 {[%clk 0:01:51]} 15. Nd2 {[%clk 0:01:56]}  Nbd7 {[%clk 0:01:49]} 16. Nxd7 {[%clk 0:01:49]}  Nxd7 {[%clk 0:01:48]} 17. Nf3 {[%clk 0:01:31]}  Bd8 {[%clk 0:00:58]} 18. Bc3 {[%clk 0:01:26]}  Bf6 {[%clk 0:00:58]} 19. e5 {[%clk 0:01:25]}  Be7 {[%clk 0:00:57]} 20. Nd4 {[%clk 0:01:15]}  Rc8 {[%clk 0:00:55]} 21. b4 {[%clk 0:01:10]}  Nb6 {[%clk 0:00:50]} 22. Nb3 {[%clk 0:01:02]}  Nd5 {[%clk 0:00:48]} 23. Bd2 {[%clk 0:00:59]}  O-O {[%clk 0:00:44]} 24. Na5 {[%clk 0:00:57]}  Ba8 {[%clk 0:00:44]} 25. Bxd5 {[%clk 0:00:52]}  cxd5 {[%clk 0:00:42]} 26. Rac1 {[%clk 0:00:50]}  f6 {[%clk 0:00:33]} 27. Bf4 {[%clk 0:00:42]}  Kf7 {[%clk 0:00:32]} 28. Kf1 {[%clk 0:00:38]}  Bxb4 {[%clk 0:00:29]} 29. Nb3 {[%clk 0:00:34]}  Rc4 {[%clk 0:00:21]} 30. Ra1 {[%clk 0:00:26]}  Bb7 {[%clk 0:00:20]} 31. Nd4 {[%clk 0:00:23]}  Bc3 {[%clk 0:00:17]} 32. Nf3 {[%clk 0:00:21]}  Bxa1 {[%clk 0:00:17]} 33. Rxa1 {[%clk 0:00:20]}  Rfc8 {[%clk 0:00:16]} 34. Ke2 {[%clk 0:00:16]}  b4 {[%clk 0:00:14]} 35. Nd2 {[%clk 0:00:15]}  Rc2 {[%clk 0:00:12]} 36. Rb1 {[%clk 0:00:11]}  a5 {[%clk 0:00:12]} 37. Kd1 {[%clk 0:00:08]}  Ba6 {[%clk 0:00:12]} 38. Nb3 {[%clk 0:00:08]}  Rxf2 {[%clk 0:00:11]} 39. Nxa5 {[%clk 0:00:07]}  Rf1+ {[%clk 0:00:11]} 40. Kd2 {[%clk 0:00:07]}  Rxb1 {[%clk 0:00:11]} 0-1


[Site "https://www.chess.com"]

[Event "Titled Tuesday Blitz March 07 Late 2023"]
[White "Botez, Alexandra"]
[Black "Sokac, Marko"]
[WhiteFideId "2603365"]
[BlackFideId "14531356"]
[WhiteElo "2059"]
[BlackElo "2355"]
[Result "0-1"]
[Round "10"]
[TimeControl "180+2"]
[Date "2023.03.07"]
[WhiteClock "0:00:02"]
[BlackClock "0:00:35"]

1. d4 {[%clk 0:03:00]}  Nf6 {[%clk 0:02:39]} 2. c4 {[%clk 0:02:57]}  e5 {[%clk 0:02:38]} 3. dxe5 {[%clk 0:02:54]}  Ng4 {[%clk 0:02:39]} 4. e3 {[%clk 0:02:53]}  Nxe5 {[%clk 0:02:39]} 5. Nc3 {[%clk 0:02:53]}  Nbc6 {[%clk 0:02:37]} 6. f4 {[%clk 0:02:48]}  Ng6 {[%clk 0:02:36]} 7. Bd3 {[%clk 0:02:44]}  d6 {[%clk 0:02:35]} 8. Qf3 {[%clk 0:02:40]}  Be7 {[%clk 0:02:32]} 9. Nge2 {[%clk 0:02:39]}  Bh4+ {[%clk 0:02:17]} 10. Ng3 {[%clk 0:02:37]}  Nce7 {[%clk 0:02:12]} 11. O-O {[%clk 0:02:36]}  c6 {[%clk 0:02:05]} 12. b3 {[%clk 0:02:15]}  Bxg3 {[%clk 0:02:00]} 13. hxg3 {[%clk 0:02:11]}  h5 {[%clk 0:01:55]} 14. Bb2 {[%clk 0:02:07]}  Bg4 {[%clk 0:01:55]} 15. Qf2 {[%clk 0:02:06]}  Qd7 {[%clk 0:01:46]} 16. e4 {[%clk 0:01:50]}  h4 {[%clk 0:01:42]} 17. gxh4 {[%clk 0:01:27]}  Nxh4 {[%clk 0:01:43]} 18. Be2 {[%clk 0:01:11]}  b6 {[%clk 0:01:35]} 19. e5 {[%clk 0:01:03]}  Bxe2 {[%clk 0:01:31]} 20. Nxe2 {[%clk 0:01:02]}  d5 {[%clk 0:01:19]} 21. cxd5 {[%clk 0:00:56]}  Nxd5 {[%clk 0:01:20]} 22. Nd4 {[%clk 0:00:46]}  O-O-O {[%clk 0:01:16]} 23. Nxc6 {[%clk 0:00:41]}  Qg4 {[%clk 0:00:42]} 24. Rac1 {[%clk 0:00:15]}  Nxf4 {[%clk 0:00:37]} 25. Nxa7+ {[%clk 0:00:14]}  Kb7 {[%clk 0:00:36]} 26. Qxf4 {[%clk 0:00:02]}  Qxg2# {[%clk 0:00:35]} 0-1


[Site "https://www.chess.com"]

[Event "Titled Tuesday Blitz March 07 Late 2023"]
[White "Goltseva, Ekaterina"]
[Black "Kretchetov, Alexandre"]
[WhiteFideId "24173770"]
[BlackFideId "4124588"]
[WhiteElo "2200"]
[BlackElo "2527"]
[Result "1/2-1/2"]
[Round "10"]
[TimeControl "180+2"]
[Date "2023.03.07"]
[WhiteClock "0:00:06"]
[BlackClock "0:00:37"]

1. d4 {[%clk 0:02:55]}  d5 {[%clk 0:02:57]} 2. Nf3 {[%clk 0:02:52]}  Nf6 {[%clk 0:02:57]} 3. g3 {[%clk 0:02:52]}  e6 {[%clk 0:02:54]} 4. Bg2 {[%clk 0:02:52]}  b5 {[%clk 0:02:54]} 5. a4 {[%clk 0:02:51]}  b4 {[%clk 0:02:54]} 6. O-O {[%clk 0:02:50]}  Bb7 {[%clk 0:02:54]} 7. c3 {[%clk 0:02:47]}  bxc3 {[%clk 0:02:52]} 8. Nxc3 {[%clk 0:02:47]}  Nbd7 {[%clk 0:02:51]} 9. a5 {[%clk 0:02:47]}  a6 {[%clk 0:02:50]} 10. Na4 {[%clk 0:02:40]}  c5 {[%clk 0:02:49]} 11. dxc5 {[%clk 0:02:40]}  Nxc5 {[%clk 0:02:46]} 12. Nb6 {[%clk 0:02:39]}  Rb8 {[%clk 0:02:45]} 13. b4 {[%clk 0:02:37]}  Nce4 {[%clk 0:02:44]} 14. Bb2 {[%clk 0:02:37]}  Bd6 {[%clk 0:02:40]} 15. Qa4+ {[%clk 0:02:31]}  Ke7 {[%clk 0:02:39]} 16. Nd4 {[%clk 0:02:25]}  Qe8 {[%clk 0:02:30]} 17. Qa3 {[%clk 0:01:44]}  Nd7 {[%clk 0:02:12]} 18. Rfc1 {[%clk 0:01:25]}  Nxb6 {[%clk 0:02:12]} 19. axb6 {[%clk 0:01:26]}  Qd7 {[%clk 0:02:07]} 20. Qa5 {[%clk 0:01:13]}  Rhc8 {[%clk 0:01:44]} 21. b5 {[%clk 0:01:01]}  Ra8 {[%clk 0:01:36]} 22. Rxc8 {[%clk 0:00:50]}  Qxc8 {[%clk 0:01:25]} 23. Qe1 {[%clk 0:00:34]}  axb5 {[%clk 0:01:17]} 24. Nxb5 {[%clk 0:00:35]}  Rxa1 {[%clk 0:01:16]} 25. Qxa1 {[%clk 0:00:35]}  Bc5 {[%clk 0:01:10]} 26. e3 {[%clk 0:00:23]}  f6 {[%clk 0:01:04]} 27. Bxe4 {[%clk 0:00:20]}  dxe4 {[%clk 0:01:04]} 28. Ba3 {[%clk 0:00:17]}  Kf7 {[%clk 0:00:57]} 29. Qc3 {[%clk 0:00:08]}  Qd7 {[%clk 0:00:51]} 30. Qxc5 {[%clk 0:00:04]}  Qd1+ {[%clk 0:00:49]} 31. Kg2 {[%clk 0:00:05]}  Qf3+ {[%clk 0:00:49]} 32. Kh3 {[%clk 0:00:05]}  e5 {[%clk 0:00:44]} 33. Nd6+ {[%clk 0:00:05]}  Kg6 {[%clk 0:00:44]} 34. Nxb7 {[%clk 0:00:03]}  Qh5+ {[%clk 0:00:36]} 35. Kg2 {[%clk 0:00:03]}  Qf3+ {[%clk 0:00:36]} 36. Kg1 {[%clk 0:00:04]}  Qd1+ {[%clk 0:00:36]} 37. Kg2 {[%clk 0:00:05]}  Qf3+ {[%clk 0:00:36]} 38. Kf1 {[%clk 0:00:05]}  Qd1+ {[%clk 0:00:36]} 39. Kg2 {[%clk 0:00:06]}  Qf3+ {[%clk 0:00:37]} 1/2-1/2


[Site "https://www.chess.com"]

[Event "Titled Tuesday Blitz March 07 Late 2023"]
[White "Becerra, Juan David"]
[Black "reevecanada"]
[WhiteFideId "4404998"]
[WhiteElo "2282"]
[BlackElo "2524"]
[Result "1-0"]
[Round "10"]
[TimeControl "180+2"]
[Date "2023.03.07"]
[WhiteClock "0:00:06"]
[BlackClock "0:00:39"]

1. e4 {[%clk 0:02:58]}  c5 {[%clk 0:02:58]} 2. d4 {[%clk 0:02:52]}  cxd4 {[%clk 0:02:57]} 3. c3 {[%clk 0:02:52]}  dxc3 {[%clk 0:02:57]} 4. Nxc3 {[%clk 0:02:52]}  d6 {[%clk 0:02:57]} 5. Bc4 {[%clk 0:02:46]}  Nf6 {[%clk 0:02:56]} 6. e5 {[%clk 0:02:46]}  Nfd7 {[%clk 0:02:54]} 7. Bxf7+ {[%clk 0:02:43]}  Kxf7 {[%clk 0:02:51]} 8. e6+ {[%clk 0:02:44]}  Kxe6 {[%clk 0:02:37]} 9. Qd5+ {[%clk 0:01:49]}  Kf6 {[%clk 0:02:34]} 10. Ne4+ {[%clk 0:01:11]}  Kg6 {[%clk 0:02:30]} 11. h4 {[%clk 0:01:03]}  h5 {[%clk 0:02:25]} 12. Ne2 {[%clk 0:00:30]}  e5 {[%clk 0:02:16]} 13. g4 {[%clk 0:00:29]}  hxg4 {[%clk 0:02:12]} 14. h5+ {[%clk 0:00:22]}  Rxh5 {[%clk 0:02:09]} 15. Nf4+ {[%clk 0:00:21]}  Kf5 {[%clk 0:01:25]} 16. Rxh5+ {[%clk 0:00:17]}  g5 {[%clk 0:01:25]} 17. Rxg5+ {[%clk 0:00:16]}  Qxg5 {[%clk 0:01:22]} 18. Nxg5 {[%clk 0:00:16]}  Nf6 {[%clk 0:01:18]} 19. Qf7 {[%clk 0:00:12]}  exf4 {[%clk 0:01:18]} 20. Qxf8 {[%clk 0:00:11]}  Nd7 {[%clk 0:01:18]} 21. Qg7 {[%clk 0:00:10]}  Ne5 {[%clk 0:01:18]} 22. Bd2 {[%clk 0:00:07]}  Nd3+ {[%clk 0:01:08]} 23. Kf1 {[%clk 0:00:06]}  Bd7 {[%clk 0:01:05]} 24. Bc3 {[%clk 0:00:07]}  Ne5 {[%clk 0:01:01]} 25. Bxe5 {[%clk 0:00:05]}  dxe5 {[%clk 0:01:02]} 26. Nh7 {[%clk 0:00:05]}  Bb5+ {[%clk 0:01:01]} 27. Kg1 {[%clk 0:00:05]}  Nd7 {[%clk 0:00:52]} 28. Qf7+ {[%clk 0:00:04]}  Ke4 {[%clk 0:00:52]} 29. Re1+ {[%clk 0:00:04]}  Kd4 {[%clk 0:00:50]} 30. Rd1+ {[%clk 0:00:05]}  Kc5 {[%clk 0:00:51]} 31. Rxd7 {[%clk 0:00:05]}  Bxd7 {[%clk 0:00:43]} 32. Qxd7 {[%clk 0:00:06]}  Rg8 {[%clk 0:00:42]} 33. Qe7+ {[%clk 0:00:05]}  Kd4 {[%clk 0:00:39]} 34. Qd6+ {[%clk 0:00:05]}  Ke4 {[%clk 0:00:38]} 35. Nf6+ {[%clk 0:00:05]}  Kf5 {[%clk 0:00:39]} 36. Nxg8 {[%clk 0:00:06]}  g3 {[%clk 0:00:40]} 37. f3 {[%clk 0:00:05]}  Kg5 {[%clk 0:00:38]} 38. Qf6+ {[%clk 0:00:05]}  Kh5 {[%clk 0:00:39]} 39. Qh6# {[%clk 0:00:06]} 1-0


[Site "https://www.chess.com"]

[Event "Titled Tuesday Blitz March 07 Late 2023"]
[White "Moral Garcia, Serafin"]
[Black "Yeritsyan, Hayk"]
[WhiteFideId "2201925"]
[BlackFideId "13307320"]
[WhiteElo "2254"]
[BlackElo "2456"]
[Result "1-0"]
[Round "10"]
[TimeControl "180+2"]
[Date "2023.03.07"]
[WhiteClock "0:00:18"]
[BlackClock "0:00:03"]

1. Nf3 {[%clk 0:02:57]}  d5 {[%clk 0:02:59]} 2. b3 {[%clk 0:02:44]}  Nf6 {[%clk 0:02:59]} 3. Bb2 {[%clk 0:02:38]}  Bf5 {[%clk 0:02:59]} 4. Nh4 {[%clk 0:02:34]}  Bg6 {[%clk 0:02:57]} 5. Nxg6 {[%clk 0:02:32]}  hxg6 {[%clk 0:02:57]} 6. e3 {[%clk 0:02:32]}  e6 {[%clk 0:02:56]} 7. d3 {[%clk 0:02:27]}  Bd6 {[%clk 0:02:56]} 8. h3 {[%clk 0:02:27]}  g5 {[%clk 0:02:54]} 9. Be2 {[%clk 0:02:25]}  Nbd7 {[%clk 0:02:52]} 10. Nd2 {[%clk 0:02:24]}  c6 {[%clk 0:02:53]} 11. c4 {[%clk 0:02:23]}  Qe7 {[%clk 0:02:52]} 12. a3 {[%clk 0:02:21]}  Be5 {[%clk 0:02:46]} 13. d4 {[%clk 0:02:20]}  Bd6 {[%clk 0:02:44]} 14. Bf3 {[%clk 0:02:17]}  Rh4 {[%clk 0:02:32]} 15. g3 {[%clk 0:02:10]}  Rh6 {[%clk 0:02:29]} 16. e4 {[%clk 0:02:09]}  e5 {[%clk 0:02:25]} 17. Kf1 {[%clk 0:02:03]}  dxe4 {[%clk 0:02:18]} 18. Nxe4 {[%clk 0:02:00]}  Nxe4 {[%clk 0:02:18]} 19. Bxe4 {[%clk 0:01:57]}  exd4 {[%clk 0:02:18]} 20. Bf3 {[%clk 0:01:42]}  Be5 {[%clk 0:02:04]} 21. Kg2 {[%clk 0:01:38]}  O-O-O {[%clk 0:02:03]} 22. Re1 {[%clk 0:01:33]}  Qd6 {[%clk 0:02:02]} 23. b4 {[%clk 0:01:29]}  Kb8 {[%clk 0:01:48]} 24. c5 {[%clk 0:01:27]}  Qc7 {[%clk 0:01:47]} 25. Bxd4 {[%clk 0:01:17]}  f6 {[%clk 0:01:29]} 26. Bxe5 {[%clk 0:00:52]}  Nxe5 {[%clk 0:01:28]} 27. Qe2 {[%clk 0:00:51]}  Rdh8 {[%clk 0:01:18]} 28. Rh1 {[%clk 0:00:48]}  a6 {[%clk 0:01:14]} 29. Rad1 {[%clk 0:00:40]}  Qc8 {[%clk 0:01:13]} 30. Bg4 {[%clk 0:00:40]}  Qc7 {[%clk 0:00:53]} 31. Rd6 {[%clk 0:00:32]}  Qe7 {[%clk 0:00:35]} 32. f4 {[%clk 0:00:25]}  gxf4 {[%clk 0:00:33]} 33. gxf4 {[%clk 0:00:25]}  Ng6 {[%clk 0:00:23]} 34. Qxe7 {[%clk 0:00:25]}  Nxe7 {[%clk 0:00:23]} 35. Re1 {[%clk 0:00:24]}  Nd5 {[%clk 0:00:22]} 36. Kg3 {[%clk 0:00:24]}  g6 {[%clk 0:00:16]} 37. Ree6 {[%clk 0:00:19]}  f5 {[%clk 0:00:16]} 38. Bxf5 {[%clk 0:00:19]}  Rh4 {[%clk 0:00:08]} 39. Bg4 {[%clk 0:00:18]}  R4h7 {[%clk 0:00:04]} 40. Rxg6 {[%clk 0:00:18]}  Re8 {[%clk 0:00:05]} 41. Rge6 {[%clk 0:00:18]}  Rf8 {[%clk 0:00:04]} 42. f5 {[%clk 0:00:18]}  Rhf7 {[%clk 0:00:04]} 43. h4 {[%clk 0:00:18]}  Nf6 {[%clk 0:00:03]} 44. h5 {[%clk 0:00:18]}  Rg8 {[%clk 0:00:02]} 45. Rxf6 {[%clk 0:00:18]}  Rxf6 {[%clk 0:00:02]} 46. Rxf6 {[%clk 0:00:18]}  Rxg4+ {[%clk 0:00:03]} 47. Kxg4 {[%clk 0:00:18]} 1-0


[Site "https://www.chess.com"]

[Event "Titled Tuesday Blitz March 07 Late 2023"]
[White "Elissalt Cardenas, Hector"]
[Black "Molenda, Marcin"]
[WhiteFideId "3500632"]
[BlackFideId "1173065"]
[WhiteElo "2202"]
[BlackElo "2286"]
[Result "0-1"]
[Round "10"]
[TimeControl "180+2"]
[Date "2023.03.07"]
[WhiteClock "0:00:03"]
[BlackClock "0:00:28"]

1. d4 {[%clk 0:02:51]}  d5 {[%clk 0:02:54]} 2. c4 {[%clk 0:02:47]}  c6 {[%clk 0:02:54]} 3. cxd5 {[%clk 0:02:45]}  cxd5 {[%clk 0:02:54]} 4. Bf4 {[%clk 0:02:38]}  Nc6 {[%clk 0:02:53]} 5. e3 {[%clk 0:02:28]}  Nf6 {[%clk 0:02:53]} 6. Bb5 {[%clk 0:02:23]}  Ne4 {[%clk 0:02:39]} 7. Ne2 {[%clk 0:02:17]}  Bf5 {[%clk 0:02:34]} 8. f3 {[%clk 0:02:15]}  Nd6 {[%clk 0:02:34]} 9. Bxc6+ {[%clk 0:02:11]}  bxc6 {[%clk 0:02:35]} 10. O-O {[%clk 0:02:09]}  e6 {[%clk 0:02:34]} 11. Nd2 {[%clk 0:02:00]}  Be7 {[%clk 0:02:31]} 12. Rc1 {[%clk 0:01:39]}  Rc8 {[%clk 0:02:28]} 13. Nc3 {[%clk 0:01:28]}  O-O {[%clk 0:02:28]} 14. Qe2 {[%clk 0:01:25]}  c5 {[%clk 0:02:18]} 15. dxc5 {[%clk 0:01:21]}  Rxc5 {[%clk 0:02:18]} 16. e4 {[%clk 0:01:21]}  dxe4 {[%clk 0:02:14]} 17. Ndxe4 {[%clk 0:01:18]}  Nxe4 {[%clk 0:02:13]} 18. fxe4 {[%clk 0:01:14]}  Bg6 {[%clk 0:02:10]} 19. Rfd1 {[%clk 0:01:13]}  Qc8 {[%clk 0:01:59]} 20. Bd6 {[%clk 0:01:09]}  Bxd6 {[%clk 0:01:58]} 21. Rxd6 {[%clk 0:01:06]}  Qb7 {[%clk 0:01:41]} 22. Rcd1 {[%clk 0:00:57]}  h6 {[%clk 0:01:25]} 23. R1d4 {[%clk 0:00:51]}  Rb8 {[%clk 0:01:22]} 24. Rd2 {[%clk 0:00:43]}  Kh7 {[%clk 0:01:12]} 25. h3 {[%clk 0:00:37]}  Rg5 {[%clk 0:01:09]} 26. Rd7 {[%clk 0:00:32]}  Qb6+ {[%clk 0:00:54]} 27. Qf2 {[%clk 0:00:29]}  Rc5 {[%clk 0:00:54]} 28. Kh2 {[%clk 0:00:22]}  Rbc8 {[%clk 0:00:47]} 29. Qg3 {[%clk 0:00:16]}  Rg5 {[%clk 0:00:43]} 30. Qd6 {[%clk 0:00:12]}  Qa5 {[%clk 0:00:38]} 31. Qd4 {[%clk 0:00:10]}  h5 {[%clk 0:00:30]} 32. b4 {[%clk 0:00:04]}  Qa3 {[%clk 0:00:28]} 33. Ne2 {[%clk 0:00:03]}  h4 {[%clk 0:00:28]} 0-1


[Site "https://www.chess.com"]